[Event "18èmeFestival International d’Echecsde Rochefort"]
[Site "Rochefort, France"]
[Date "2019.02.18"]
[Round "4.5"]
[White "YU, Ruiyuan"]
[Black "BOBADILLA VIERA, Jorge Samuel"]
[Result "0-1"]
[TimeControl "1h30 min/40coups + 30 min +  30sec/coup"]
[WhiteTitle "GM"]
[BlackTitle "IM"]
[WhiteFideId "8603090"]
[WhiteElo "2491"]
[BlackElo "2318"]

1. e4 {[%clk 01:27:07]} {[%emt 00:03:52]} c5 {[%clk 01:25:52]} {[%emt
00:05:09]} 2. Nf3 {[%clk 01:27:28]} {[%emt 00:00:08]} d6 {[%clk 01:26:18]}
{[%emt 00:00:05]} 3. Bb5+ {[%clk 01:27:08]} {[%emt 00:00:49]} Nd7 {[%clk
01:26:43]} {[%emt 00:00:06]} 4. d4 {[%clk 01:27:18]} {[%emt 00:00:20]} cxd4
{[%clk 01:26:46]} {[%emt 00:00:27]} 5. Qxd4 {[%clk 01:27:41]} {[%emt 00:00:06]}
a6 {[%clk 01:27:13]} {[%emt 00:00:04]} 6. Bxd7+ {[%clk 01:28:04]} {[%emt
00:00:06]} Bxd7 {[%clk 01:27:41]} {[%emt 00:00:02]} 7. c4 {[%clk 01:28:29]}
{[%emt 00:00:05]} e5 {[%clk 01:28:04]} {[%emt 00:00:06]} 8. Qd3 {[%clk
01:28:53]} {[%emt 00:00:06]} b5 {[%clk 01:28:30]} {[%emt 00:00:05]} 9. Nc3
{[%clk 01:29:16]} {[%emt 00:00:06]} bxc4 {[%clk 01:28:39]} {[%emt 00:00:21]} 10.
Qxc4 {[%clk 01:29:44]} {[%emt 00:00:02]} Be6 {[%clk 01:28:59]} {[%emt
00:00:09]} 11. Qd3 {[%clk 01:30:12]} {[%emt 00:00:02]} h6 {[%clk 01:29:07]}
{[%emt 00:00:22]} 12. O-O {[%clk 01:30:36]} {[%emt 00:00:06]} Nf6 {[%clk
01:29:28]} {[%emt 00:00:09]} 13. Rd1 {[%clk 01:30:57]} {[%emt 00:00:08]} Be7
{[%clk 01:29:37]} {[%emt 00:00:21]} 14. Ne1 {[%clk 01:31:21]} {[%emt 00:00:07]}
O-O {[%clk 01:29:37]} {[%emt 00:00:29]} 15. Nc2 {[%clk 01:31:48]} {[%emt
00:00:04]} Qb6 {[%clk 01:28:57]} {[%emt 00:01:09]} 16. Ne3 {[%clk 01:32:11]}
{[%emt 00:00:07]} Rfc8 {[%clk 01:27:45]} {[%emt 00:01:43]} 17. b3 {[%clk
01:31:43]} {[%emt 00:00:59]} Qb7 {[%clk 01:18:58]} {[%emt 00:09:17]} 18. Bb2
{[%clk 01:21:59]} {[%emt 00:10:13]} a5 {[%clk 01:17:07]} {[%emt 00:02:21]} 19.
Rd2 {[%clk 01:20:28]} {[%emt 00:02:01]} Ra6 {[%clk 01:09:00]} {[%emt 00:08:38]}
20. Rad1 {[%clk 01:18:21]} {[%emt 00:02:37]} Bd8 {[%clk 01:04:05]} {[%emt
00:05:25]} 21. Ncd5 {[%clk 01:16:49]} {[%emt 00:02:02]} Nxd5 {[%clk 01:01:58]}
{[%emt 00:02:37]} 22. Nxd5 {[%clk 01:17:11]} {[%emt 00:00:08]} Bxd5 {[%clk
01:02:18]} {[%emt 00:00:10]} 23. Qxd5 {[%clk 01:17:39]} {[%emt 00:00:03]} Qxd5
{[%clk 01:02:33]} {[%emt 00:00:15]} 24. Rxd5 {[%clk 01:18:07]} {[%emt
00:00:02]} Be7 {[%clk 00:56:46]} {[%emt 00:06:17]} 25. Ba3 {[%clk 01:14:27]}
{[%emt 00:04:10]} Rc2 {[%clk 00:45:33]} {[%emt 00:11:43]} 26. R1d2 {[%clk
01:14:31]} {[%emt 00:00:26]} Rxd2 {[%clk 00:45:35]} {[%emt 00:00:29]} 27. Rxd2
{[%clk 01:14:59]} {[%emt 00:00:02]} Kf8 {[%clk 00:42:13]} {[%emt 00:03:51]} 28.
Kf1 {[%clk 01:08:17]} {[%emt 00:07:12]} Ke8 {[%clk 00:42:24]} {[%emt 00:00:20]}
29. Ke2 {[%clk 01:03:10]} {[%emt 00:05:37]} Kd7 {[%clk 00:42:05]} {[%emt
00:00:49]} 30. Rd5 {[%clk 01:02:33]} {[%emt 00:01:06]} Bd8 {[%clk 00:39:04]}
{[%emt 00:03:31]} 31. Kd3 {[%clk 00:53:22]} {[%emt 00:09:41]} Bc7 {[%clk
00:35:23]} {[%emt 00:04:11]} 32. Bb2 {[%clk 00:52:59]} {[%emt 00:00:54]} Ke6
{[%clk 00:34:24]} {[%emt 00:01:29]} 33. Rb5 {[%clk 00:48:06]} {[%emt 00:05:24]}
f5 {[%clk 00:27:34]} {[%emt 00:07:20]} 34. f3 {[%clk 00:47:56]} {[%emt
00:00:40]} h5 {[%clk 00:26:54]} {[%emt 00:01:10]} 35. Bc3 {[%clk 00:47:43]}
{[%emt 00:00:42]} g5 {[%clk 00:20:39]} {[%emt 00:06:44]} 36. h3 {[%clk
00:41:30]} {[%emt 00:06:43]} fxe4+ {[%clk 00:19:31]} {[%emt 00:01:39]} 37. fxe4
{[%clk 00:41:55]} {[%emt 00:00:06]} Kd7 {[%clk 00:12:55]} {[%emt 00:07:06]} 38.
g4 {[%clk 00:37:20]} {[%emt 00:05:05]} hxg4 {[%clk 00:13:18]} {[%emt 00:00:07]}
39. hxg4 {[%clk 00:37:49]} {[%emt 00:00:01]} Kc6 {[%clk 00:12:20]} {[%emt
00:01:27]} 40. a4 {[%clk 00:38:10]} {[%emt 00:00:09]} Ra8 {[%clk 00:12:13]}
{[%emt 00:00:37]} 41. Bd2 {[%clk 00:38:19]} {[%emt 00:00:20]} Rh8 {[%clk
00:09:22]} {[%emt 00:03:21]} 42. Bxa5 {[%clk 00:31:27]} {[%emt 00:07:23]} Rh3+
{[%clk 00:09:02]} {[%emt 00:00:48]} 43. Kc4 {[%clk 00:31:36]} {[%emt 00:00:21]}
Re3 {[%clk 00:08:10]} {[%emt 00:01:22]} 44. Bxc7 {[%clk 00:32:04]} {[%emt
00:00:02]} Rxe4+ {[%clk 00:08:32]} {[%emt 00:00:08]} 45. Kc3 {[%clk 00:31:39]}
{[%emt 00:00:55]} Kxc7 {[%clk 00:08:56]} {[%emt 00:00:06]} 46. a5 {[%clk
00:32:06]} {[%emt 00:00:03]} Rxg4 {[%clk 00:27:55]} {[%emt 00:11:30]} 47. a6
{[%clk 00:57:52]} {[%emt 00:04:45]} Rg1 {[%clk 00:26:08]} {[%emt 00:02:17]} 48.
Rb7+ {[%clk 00:56:59]} {[%emt 00:01:23]} Kc6 {[%clk 00:23:04]} {[%emt
00:03:34]} 49. b4 {[%clk 00:56:28]} {[%emt 00:01:01]} Ra1 {[%clk 00:22:34]}
{[%emt 00:01:00]} 50. b5+ {[%clk 00:56:54]} {[%emt 00:00:04]} Kc5 {[%clk
00:22:57]} {[%emt 00:00:06]} 51. Kd2 {[%clk 00:55:51]} {[%emt 00:01:34]} g4
{[%clk 00:22:41]} {[%emt 00:00:46]} 52. Ke2 {[%clk 00:55:31]} {[%emt 00:00:50]}
e4 {[%clk 00:21:47]} {[%emt 00:01:24]} 53. a7 {[%clk 00:55:26]} {[%emt
00:00:36]} g3 {[%clk 00:21:30]} {[%emt 00:00:46]} 54. Ke3 {[%clk 00:53:13]}
{[%emt 00:02:43]} g2 {[%clk 00:19:54]} {[%emt 00:02:05]} 55. Rg7 {[%clk
00:53:39]} {[%emt 00:00:05]} Rxa7 {[%clk 00:19:25]} {[%emt 00:01:00]} 56. Rxg2
{[%clk 00:54:06]} {[%emt 00:00:03]} d5 {[%clk 00:19:29]} {[%emt 00:00:25]} 57.
Rc2+ {[%clk 00:52:44]} {[%emt 00:01:52]} Kd6 {[%clk 00:18:23]} {[%emt
00:01:36]} 58. Rb2 {[%clk 00:52:32]} {[%emt 00:00:41]} Ra3+ {[%clk 00:18:36]}
{[%emt 00:00:17]} 59. Kf4 {[%clk 00:52:58]} {[%emt 00:00:03]} Rf3+ {[%clk
00:18:54]} {[%emt 00:00:13]} 60. Kg4 {[%clk 00:53:25]} {[%emt 00:00:02]} Rf7
{[%clk 00:15:27]} {[%emt 00:03:58]} 61. b6 {[%clk 00:53:44]} {[%emt 00:00:11]}
Kc6 {[%clk 00:15:40]} {[%emt 00:00:16]} 62. Rb3 {[%clk 00:53:30]} {[%emt
00:00:44]} Rb7 {[%clk 00:16:01]} {[%emt 00:00:09]} 63. Rc3+ {[%clk 00:53:24]}
{[%emt 00:00:37]} Kd6 {[%clk 00:16:09]} {[%emt 00:00:22]} 64. Rb3 {[%clk
00:53:49]} {[%emt 00:00:05]} Kc5 {[%clk 00:16:35]} {[%emt 00:00:04]} 65. Rc3+
{[%clk 00:54:08]} {[%emt 00:00:11]} Kxb6 {[%clk 00:15:58]} {[%emt 00:01:06]} 66.
Kf4 {[%clk 00:54:37]} {[%emt 00:00:02]} Rc7 {[%clk 00:16:17]} {[%emt 00:00:11]}
67. Ra3 {[%clk 00:53:46]} {[%emt 00:01:21]} Kc5 {[%clk 00:16:07]} {[%emt
00:00:40]} 68. Ke3 {[%clk 00:54:04]} {[%emt 00:00:12]} Kd6 {[%clk 00:16:24]}
{[%emt 00:00:12]} 0-1

[Event "18èmeFestival International d’Echecsde Rochefort"]
[Site "Rochefort, France"]
[Date "2019.02.18"]
[Round "4.4"]
[White "DESLANDES, Pascal"]
[Black "DELORME, Axel"]
[Result "1/2-1/2"]
[TimeControl "1h30 min/40coups + 30 min +  30sec/coup"]
[WhiteTitle "FM"]
[BlackTitle "GM"]
[WhiteFideId "605239"]
[BlackFideId "632023"]
[WhiteElo "2349"]
[BlackElo "2498"]

1. e4 {[%clk 01:30:55]} {[%emt 00:00:04]} e5 {[%clk 01:30:52]} {[%emt
00:00:08]} 2. Nf3 {[%clk 01:31:16]} {[%emt 00:00:08]} Nc6 {[%clk 01:31:18]}
{[%emt 00:00:05]} 3. Bb5 {[%clk 01:31:34]} {[%emt 00:00:12]} a6 {[%clk
01:31:25]} {[%emt 00:00:23]} 4. Ba4 {[%clk 01:31:54]} {[%emt 00:00:09]} g6
{[%clk 01:31:49]} {[%emt 00:00:07]} 5. d4 {[%clk 01:24:32]} {[%emt 00:07:52]}
exd4 {[%clk 01:31:29]} {[%emt 00:00:50]} 6. Nxd4 {[%clk 01:24:47]} {[%emt
00:00:15]} Bg7 {[%clk 01:30:12]} {[%emt 00:01:47]} 7. Nxc6 {[%clk 01:24:25]}
{[%emt 00:00:52]} bxc6 {[%clk 01:29:35]} {[%emt 00:01:07]} 8. O-O {[%clk
01:23:58]} {[%emt 00:00:56]} Ne7 {[%clk 01:26:55]} {[%emt 00:03:09]} 9. Nc3
{[%clk 01:15:09]} {[%emt 00:09:19]} O-O {[%clk 01:25:00]} {[%emt 00:02:24]} 10.
Be3 {[%clk 01:14:47]} {[%emt 00:00:52]} d6 {[%clk 01:20:43]} {[%emt 00:04:48]}
11. Bd4 {[%clk 01:13:30]} {[%emt 00:01:48]} c5 {[%clk 01:17:37]} {[%emt
00:03:36]} 12. Bxg7 {[%clk 01:13:46]} {[%emt 00:00:13]} Kxg7 {[%clk 01:17:59]}
{[%emt 00:00:08]} 13. Qd2 {[%clk 01:09:12]} {[%emt 00:05:05]} Rb8 {[%clk
01:14:40]} {[%emt 00:03:49]} 14. Rad1 {[%clk 01:05:58]} {[%emt 00:03:44]} Bg4
{[%clk 01:05:29]} {[%emt 00:09:42]} 15. Rde1 {[%clk 00:54:14]} {[%emt
00:12:14]} Be6 {[%clk 01:00:53]} {[%emt 00:05:06]} 16. b3 {[%clk 00:52:41]}
{[%emt 00:02:03]} f6 {[%clk 00:31:41]} {[%emt 00:29:42]} 17. Nd5 {[%clk
00:50:45]} {[%emt 00:02:26]} Rf7 {[%clk 00:29:09]} {[%emt 00:03:02]} 18. Qa5
{[%clk 00:43:09]} {[%emt 00:08:06]} Bxd5 {[%clk 00:22:03]} {[%emt 00:07:37]} 19.
exd5 {[%clk 00:43:29]} {[%emt 00:00:10]} c6 {[%clk 00:19:49]} {[%emt 00:02:44]}
20. Qxd8 {[%clk 00:42:11]} {[%emt 00:01:47]} Rxd8 {[%clk 00:20:09]} {[%emt
00:00:09]} 21. dxc6 {[%clk 00:42:06]} {[%emt 00:00:36]} Nd5 {[%clk 00:20:20]}
{[%emt 00:00:19]} 22. Re6 {[%clk 00:38:17]} {[%emt 00:04:18]} Nc3 {[%clk
00:16:30]} {[%emt 00:04:21]} 23. Rfe1 {[%clk 00:37:52]} {[%emt 00:00:55]} d5
{[%clk 00:15:18]} {[%emt 00:01:42]} 24. Kf1 {[%clk 00:27:57]} {[%emt 00:10:25]}
d4 {[%clk 00:12:47]} {[%emt 00:03:02]} 25. Re7 {[%clk 00:22:13]} {[%emt
00:06:13]} Rc8 {[%clk 00:08:52]} {[%emt 00:04:25]} 26. R1e6 {[%clk 00:21:49]}
{[%emt 00:00:55]} Rc7 {[%clk 00:05:21]} {[%emt 00:03:59]} 27. Re8 {[%clk
00:20:07]} {[%emt 00:02:13]} Nxa4 {[%clk 00:02:34]} {[%emt 00:03:18]} 28. bxa4
{[%clk 00:20:23]} {[%emt 00:00:13]} Rf8 {[%clk 00:03:03]} {[%emt 00:00:02]} 29.
R8e7+ {[%clk 00:11:30]} {[%emt 00:09:23]} Rf7 {[%clk 00:03:21]} {[%emt
00:00:11]} 30. Re8 {[%clk 00:11:51]} {[%emt 00:00:09]} Rf8 {[%clk 00:03:48]}
{[%emt 00:00:04]} 31. R8e7+ {[%clk 00:12:13]} {[%emt 00:00:08]} Rf7 {[%clk
00:04:09]} {[%emt 00:00:08]} 32. Re8 {[%emt 00:00:32]} Rf8 {[%emt 00:00:05]} 33.
R6e7+ {[%emt 00:00:03]} Rf7 {[%emt 00:00:05]} 34. Rxc7 Rxc7 35. Rb8 {[%emt
00:00:05]} Rxc6 {[%emt 00:00:01]} 36. a5 {[%emt 00:00:01]} c4 {[%emt 00:00:02]}
37. Rb7+ {[%emt 00:00:48]} Kh6 {[%emt 00:00:01]} 1/2-1/2

[Event "18èmeFestival International d’Echecsde Rochefort"]
[Site "Rochefort, France"]
[Date "2019.02.18"]
[Round "4.1"]
[White "GASCON DEL NOGAL, Jose Rafael"]
[Black "ZENG, Chongsheng"]
[Result "1-0"]
[TimeControl "1h30 min/40coups + 30 min +  30sec/coup"]
[WhiteTitle "GM"]
[BlackTitle "GM"]
[WhiteFideId "3902463"]
[BlackFideId "8603847"]
[WhiteElo "2457"]
[BlackElo "2544"]

1. Nf3 {[%clk 01:22:05]} {[%emt 00:08:53]} Nf6 {[%clk 01:30:49]} {[%emt
00:00:12]} 2. c4 {[%clk 01:22:32]} {[%emt 00:00:04]} g6 {[%clk 01:31:02]}
{[%emt 00:00:17]} 3. Nc3 {[%clk 01:22:56]} {[%emt 00:00:05]} Bg7 {[%clk
01:26:58]} {[%emt 00:04:35]} 4. e4 {[%clk 01:23:19]} {[%emt 00:00:08]} O-O
{[%clk 01:26:15]} {[%emt 00:01:13]} 5. d4 {[%clk 01:23:39]} {[%emt 00:00:09]}
c6 {[%clk 01:26:41]} {[%emt 00:00:04]} 6. e5 {[%clk 01:20:52]} {[%emt
00:03:17]} Ne8 {[%clk 01:27:01]} {[%emt 00:00:10]} 7. h4 {[%clk 01:21:02]}
{[%emt 00:00:19]} d6 {[%clk 01:26:21]} {[%emt 00:01:11]} 8. e6 {[%clk
01:04:06]} {[%emt 00:17:27]} Bxe6 {[%clk 01:23:25]} {[%emt 00:03:26]} 9. h5
{[%clk 01:04:30]} {[%emt 00:00:06]} Bg4 {[%clk 01:17:51]} {[%emt 00:06:04]} 10.
hxg6 {[%clk 01:04:16]} {[%emt 00:00:44]} hxg6 {[%clk 01:09:38]} {[%emt
00:08:43]} 11. Be3 {[%clk 01:03:43]} {[%emt 00:01:03]} e5 {[%clk 01:01:08]}
{[%emt 00:09:01]} 12. dxe5 {[%clk 01:02:43]} {[%emt 00:01:30]} Nd7 {[%clk
00:59:56]} {[%emt 00:01:42]} 13. Qd2 {[%clk 00:58:28]} {[%emt 00:04:45]} Nxe5
{[%clk 00:55:17]} {[%emt 00:05:08]} 14. Be2 {[%clk 00:58:49]} {[%emt 00:00:09]}
Bxf3 {[%clk 00:53:13]} {[%emt 00:02:35]} 15. gxf3 {[%clk 00:59:13]} {[%emt
00:00:05]} d5 {[%clk 00:53:30]} {[%emt 00:00:13]} 16. cxd5 {[%clk 00:55:21]}
{[%emt 00:04:22]} Nd6 {[%clk 00:52:51]} {[%emt 00:01:08]} 17. Bh6 {[%clk
00:52:51]} {[%emt 00:02:59]} Qf6 {[%clk 00:33:58]} {[%emt 00:19:24]} 18. Bxg7
{[%clk 00:53:07]} {[%emt 00:00:15]} Qxg7 {[%clk 00:34:11]} {[%emt 00:00:17]} 19.
dxc6 {[%clk 00:46:31]} {[%emt 00:07:05]} Ndc4 {[%clk 00:30:16]} {[%emt
00:04:26]} 20. Qf4 {[%clk 00:44:31]} {[%emt 00:02:29]} Nxb2 {[%clk 00:28:36]}
{[%emt 00:02:11]} 21. Kf1 {[%clk 00:39:05]} {[%emt 00:05:56]} bxc6 {[%clk
00:25:25]} {[%emt 00:03:41]} 22. Ne4 {[%clk 00:38:09]} {[%emt 00:01:25]} f6
{[%clk 00:24:43]} {[%emt 00:01:13]} 23. Rb1 {[%clk 00:31:53]} {[%emt 00:06:46]}
Rab8 {[%clk 00:16:35]} {[%emt 00:08:39]} 24. Qc1 {[%clk 00:27:16]} {[%emt
00:05:07]} Qb7 {[%clk 00:17:03]} {[%emt 00:00:02]} 25. Nc5 {[%clk 00:12:54]}
{[%emt 00:14:52]} Qb4 {[%clk 00:04:58]} {[%emt 00:12:36]} 26. Qh6 {[%clk
00:12:27]} {[%emt 00:00:57]} Kf7 {[%clk 00:04:10]} {[%emt 00:01:18]} 27. Qh7+
{[%clk 00:12:35]} {[%emt 00:00:21]} Ke8 {[%clk 00:04:39]} {[%emt 00:00:01]} 28.
Na6 {[%clk 00:12:35]} {[%emt 00:00:31]} Qd6 {[%clk 00:02:30]} {[%emt 00:02:39]}
29. Nxb8 {[%clk 00:12:42]} {[%emt 00:00:23]} Qxb8 {[%clk 00:02:54]} {[%emt
00:00:06]} 30. f4 {[%clk 00:13:01]} {[%emt 00:00:12]} Nf7 {[%clk 00:02:37]}
{[%emt 00:00:47]} 31. Rh3 {[%clk 00:11:23]} {[%emt 00:02:07]} Qxf4 {[%clk
00:02:31]} {[%emt 00:00:36]} 32. Re3+ {[%clk 00:11:31]} {[%emt 00:00:21]} Kd8
{[%clk 00:03:00]} {[%emt 00:00:02]} 33. Rxb2 {[%clk 00:10:11]} {[%emt
00:01:50]} Rh8 {[%clk 00:03:28]} 34. Rd2+ {[%clk 00:10:36]} {[%emt 00:00:06]}
Kc8 {[%clk 00:02:57]} {[%emt 00:01:02]} 35. Ba6+ {[%clk 00:11:02]} {[%emt
00:00:04]} Kb8 {[%clk 00:03:18]} {[%emt 00:00:09]} 36. Rb3+ {[%clk 00:11:22]}
{[%emt 00:00:09]} Ka8 {[%clk 00:03:37]} {[%emt 00:00:12]} 37. Qxh8+ {[%clk
00:11:47]} {[%emt 00:00:05]} 1-0

[Event "18èmeFestival International d’Echecsde Rochefort"]
[Site "Rochefort, France"]
[Date "2019.02.18"]
[Round "4.2"]
[White "DEMUTH, Adrien"]
[Black "MU, Ke"]
[Result "1/2-1/2"]
[TimeControl "1h30 min/40coups + 30 min +  30sec/coup"]
[WhiteTitle "GM"]
[WhiteFideId "642274"]
[BlackFideId "8602778"]
[WhiteElo "2519"]
[BlackElo "2404"]

1. Nf3 {[%clk 01:26:16]} {[%emt 00:04:43]} Nf6 {[%clk 01:29:31]} {[%emt
00:01:26]} 2. c4 {[%clk 01:26:37]} {[%emt 00:00:13]} c6 {[%clk 01:29:38]}
{[%emt 00:00:23]} 3. d4 {[%clk 01:26:15]} {[%emt 00:00:52]} d5 {[%clk
01:30:01]} {[%emt 00:00:06]} 4. cxd5 {[%clk 01:26:30]} {[%emt 00:00:15]} cxd5
{[%clk 01:30:24]} {[%emt 00:00:07]} 5. Nc3 {[%clk 01:26:57]} {[%emt 00:00:03]}
Nc6 {[%clk 01:30:37]} {[%emt 00:00:17]} 6. Bf4 {[%clk 01:27:12]} {[%emt
00:00:14]} Bf5 {[%clk 01:29:28]} {[%emt 00:01:39]} 7. e3 {[%clk 01:27:23]}
{[%emt 00:00:19]} e6 {[%clk 01:29:43]} {[%emt 00:00:15]} 8. Qb3 {[%clk
01:27:23]} {[%emt 00:00:30]} Bb4 {[%clk 01:28:51]} {[%emt 00:01:22]} 9. Ne5
{[%clk 01:27:08]} {[%emt 00:00:45]} Qb6 {[%clk 01:12:30]} {[%emt 00:16:52]} 10.
Nxc6 {[%clk 01:26:48]} {[%emt 00:00:50]} bxc6 {[%clk 01:11:56]} {[%emt
00:01:03]} 11. Be2 {[%clk 01:27:12]} {[%emt 00:00:06]} Ne4 {[%clk 01:01:36]}
{[%emt 00:10:50]} 12. f3 {[%clk 01:26:16]} {[%emt 00:01:26]} Nxc3 {[%clk
01:01:35]} {[%emt 00:00:31]} 13. bxc3 {[%clk 01:26:42]} {[%emt 00:00:04]} Be7
{[%clk 01:01:59]} {[%emt 00:00:05]} 14. c4 {[%clk 01:27:01]} {[%emt 00:00:12]}
g5 {[%clk 00:56:09]} {[%emt 00:06:20]} 15. Bg3 {[%clk 01:20:44]} {[%emt
00:06:47]} h5 {[%clk 00:54:18]} {[%emt 00:02:21]} 16. h3 {[%clk 01:18:48]}
{[%emt 00:02:26]} Qb4+ {[%clk 00:46:10]} {[%emt 00:08:38]} 17. Kf2 {[%clk
00:56:49]} {[%emt 00:22:29]} a5 {[%clk 00:45:10]} {[%emt 00:01:29]} 18. Rhc1
{[%clk 00:48:40]} {[%emt 00:08:38]} O-O {[%clk 00:35:00]} {[%emt 00:10:40]} 19.
c5 {[%clk 00:47:30]} {[%emt 00:01:40]} Ra7 {[%clk 00:32:14]} {[%emt 00:03:16]}
20. Rc3 {[%clk 00:38:23]} {[%emt 00:09:37]} h4 {[%clk 00:28:00]} {[%emt
00:04:45]} 21. Bh2 {[%clk 00:38:12]} {[%emt 00:00:41]} Rb7 {[%clk 00:28:02]}
{[%emt 00:00:28]} 22. Bd3 {[%clk 00:19:09]} {[%emt 00:19:33]} Bxd3 {[%clk
00:23:35]} {[%emt 00:04:57]} 23. Rxd3 {[%clk 00:19:31]} {[%emt 00:00:08]} a4
{[%clk 00:21:51]} {[%emt 00:02:14]} 24. Qxb4 {[%clk 00:15:54]} {[%emt
00:04:07]} Rxb4 {[%clk 00:22:15]} {[%emt 00:00:06]} 25. Re1 {[%clk 00:15:54]}
{[%emt 00:00:29]} Ra8 {[%clk 00:20:19]} {[%emt 00:02:26]} 26. Re2 {[%clk
00:16:16]} {[%emt 00:00:09]} Ra7 {[%clk 00:19:30]} {[%emt 00:01:18]} 27. f4
{[%clk 00:12:59]} {[%emt 00:03:47]} f5 {[%clk 00:16:18]} {[%emt 00:03:42]} 28.
Kf3 {[%clk 00:11:30]} {[%emt 00:01:59]} Rab7 {[%clk 00:15:26]} {[%emt
00:01:22]} 29. fxg5 {[%clk 00:10:26]} {[%emt 00:01:35]} Bxg5 {[%clk 00:15:51]}
{[%emt 00:00:05]} 30. Bf4 {[%clk 00:09:51]} {[%emt 00:01:04]} Bf6 {[%clk
00:15:40]} {[%emt 00:00:41]} 31. g3 {[%clk 00:05:36]} {[%emt 00:04:46]} Rb2
{[%clk 00:11:35]} {[%emt 00:04:34]} 32. Rxb2 {[%clk 00:03:48]} {[%emt
00:02:18]} Rxb2 {[%clk 00:12:01]} {[%emt 00:00:04]} 33. Ra3 {[%clk 00:04:14]}
{[%emt 00:00:04]} Rb4 {[%clk 00:12:14]} {[%emt 00:00:17]} 34. g4 {[%clk
00:02:19]} {[%emt 00:02:26]} Kf7 {[%clk 00:10:20]} {[%emt 00:02:24]} 35. gxf5
{[%clk 00:02:24]} {[%emt 00:00:25]} exf5 {[%clk 00:10:49]} {[%emt 00:00:01]} 36.
Rd3 {[%clk 00:02:16]} {[%emt 00:00:37]} Bd8 {[%clk 00:08:02]} {[%emt 00:03:17]}
37. Rd2 {[%clk 00:00:54]} {[%emt 00:01:52]} Rb1 {[%clk 00:06:48]} {[%emt
00:01:44]} 38. Rc2 {[%clk 00:00:54]} {[%emt 00:00:30]} Rf1+ {[%clk 00:03:07]}
{[%emt 00:04:11]} 39. Rf2 {[%clk 00:00:57]} {[%emt 00:00:26]} Rb1 {[%clk
00:03:19]} {[%emt 00:00:18]} 40. Rc2 {[%clk 00:01:26]} {[%emt 00:00:01]} Bf6
{[%clk 00:02:54]} {[%emt 00:00:54]} 41. Rd2 {[%clk 00:28:12]} {[%emt 00:03:44]}
Bd8 {[%clk 00:18:42]} {[%emt 00:14:41]} 42. Ke4 {[%emt 00:00:21]} 1/2-1/2